lending/lending_fUSD_20240621
["ID","MTS","AMOUNT","RATE_DAILY","PERIOD"]
[330094782,1718989966310,-150.0,0.00032444,2]
[330094783,1718989966322,-25000.0,0.0003248,2]
[330094784,1718989966331,-844.0,0.00032512,3]
[330094785,1718989966341,-5000.0,0.00032518,2]
[330094786,1718989966351,-170.17,0.00032537,2]
[330094787,1718989966360,-1038.0,0.00032562,5]
[330094788,1718989966370,-10000.0,0.00032591,2]
[330094789,1718989966380,-10000.0,0.00032596,2]
[330094790,1718989966389,-1000.0,0.000326,2]
[330094791,1718989966399,-500.0,0.000326,2]
[330094792,1718989966408,-500.0,0.0003267,10]
[330094793,1718989966418,-1300.0,0.0003267,10]
[330094794,1718989966427,-3100.0,0.0003267,10]
[330094795,1718989966437,-800.0,0.0003267,10]
[330094796,1718989966447,-10000.0,0.00032671,2]
[330094797,1718989966457,-5000.0,0.00032686,2]
[330094798,1718989966466,-5000.0,0.00032689,2]
[330094799,1718989966476,-5000.0,0.00032754,2]
[330094800,1718989966486,-150.0,0.00032757,120]
[330094801,1718989966497,-5000.0,0.00032758,2]
[330094802,1718989966506,-5000.0,0.0003277,2]
[330094803,1718989966515,-5000.0,0.00032774,2]
[330094804,1718989966527,-5000.0,0.00032777,2]
[330094805,1718989966537,-5000.0,0.00032797,2]
[330094806,1718989966546,-3552.90677231,0.000328,2]
[330094807,1718989966555,-5000.0,0.00032804,2]
[330094808,1718989966565,-1458.43644623,0.0003281,2]
[330094809,1718989966575,-5000.0,0.00032814,2]
[330094810,1718989966584,-5000.0,0.00032821,2]
[330094811,1718989966594,-150.0,0.0003284,120]
[330094812,1718989966604,-465.42006151,0.00032876,30]
[330094813,1718989966614,-841.39,0.00032876,120]
[330094814,1718989966624,-841.39,0.00032876,120]
[330094815,1718989966633,-841.39,0.00032876,120]
[330094816,1718989966643,-841.39,0.00032876,120]
[330094817,1718989966653,-841.39,0.00032876,120]
[330094818,1718989966663,-841.39,0.00032876,120]
[330094819,1718989966672,-841.39,0.00032876,120]
[330094820,1718989966682,-841.39,0.00032876,120]
[330094821,1718989966691,-841.39,0.00032876,120]
[330094822,1718989966701,-841.39,0.00032876,120]
[330094823,1718989966711,-841.39,0.00032876,120]
[330094824,1718989966721,-841.39,0.00032876,120]
[330094825,1718989966730,-841.39,0.00032876,120]
[330094826,1718989966740,-841.39,0.00032876,120]
[330094827,1718989966752,-841.39,0.00032876,120]
[330094828,1718989966762,-841.39,0.00032876,120]
[330094829,1718989966772,-841.39,0.00032876,120]
[330094830,1718989966781,-841.39,0.00032876,120]
[330094831,1718989966790,-841.39,0.00032876,120]
[330094832,1718989966799,-841.39,0.00032876,120]
[330094833,1718989966808,-841.39,0.00032876,120]
[330094834,1718989966818,-841.39,0.00032876,120]
[330094835,1718989966827,-841.39,0.00032876,120]
[330094836,1718989966836,-841.5341667,0.00032876,120]
[330094837,1718989966845,-19704.08,0.00032876,17]
[330094838,1718989966854,-536.27224311,0.00032876,2]
[330094839,1718989966864,-536.27224311,0.00032876,2]
[330094840,1718989966873,-536.27224311,0.00032876,2]
[330094841,1718989966882,-536.27224311,0.00032876,2]
[330094842,1718989966891,-536.27224311,0.00032876,2]
[330094843,1718989966900,-536.27224311,0.00032876,2]
[330094844,1718989966910,-536.27224311,0.00032876,2]
[330094845,1718989966919,-536.27224311,0.00032876,2]
[330094846,1718989966928,-536.27224311,0.00032876,2]
[330094847,1718989966938,-536.27224311,0.00032876,2]
[330094848,1718989966948,-536.27224311,0.00032876,2]
[330094849,1718989966957,-536.27224311,0.00032876,2]
[330094850,1718989966966,-536.27224311,0.00032876,2]
[330094851,1718989966976,-536.27224311,0.00032876,2]
[330094852,1718989966985,-536.27224311,0.00032876,2]
[330094853,1718989966995,-536.27224311,0.00032876,2]
[330094854,1718989967005,-536.27224311,0.00032876,2]
[330094855,1718989967015,-536.27224311,0.00032876,2]
[330094856,1718989967024,-536.27224311,0.00032876,2]
[330094857,1718989967034,-536.27224311,0.00032876,2]
[330094858,1718989967043,-536.27224311,0.00032876,2]
[330094859,1718989967053,-536.27224311,0.00032876,2]
[330094860,1718989967062,-536.27224311,0.00032876,2]
[330094861,1718989967071,-536.27224311,0.00032876,2]
[330094862,1718989967081,-536.27224311,0.00032876,2]
[330094863,1718989967091,-536.27224311,0.00032876,2]
[330094864,1718989967100,-536.27224311,0.00032876,2]
[330094865,1718989967109,-200.0,0.00032877,60]
[330094866,1718989967119,-580.0,0.00032877,13]
[330094867,1718989967133,-37933.97,0.00032877,2]
[330094868,1718989967143,-505.0,0.00032877,13]
[330094869,1718989967153,-630.8,0.00032877,2]
[330094870,1718989967163,-323.59,0.00032877,2]
[330094871,1718989967172,-56497.83,0.00032877,2]
[330094872,1718989967182,-1000.0,0.000329,2]
[330094873,1718989967191,-1000.0,0.000329,2]
[330094874,1718989967202,-984.04860768,0.000329,30]
[330094875,1718989967213,-3600.0,0.000329,2]
[330094876,1718989967223,-1000.0,0.000329,2]
[330094877,1718989967233,-500.0,0.000329,2]
[330094878,1718989967242,-1200.0,0.000329,2]
[330094879,1718989967254,-2000.0,0.000329,2]
[330094880,1718989967264,-5000.0,0.00032902,2]
[330094881,1718989967274,-5000.0,0.00032909,2]
[330094882,1718989967283,-845.78587,0.0003299,2]
[330094883,1718989967293,-20000.0,0.00033,7]
[330094884,1718989967303,-401.64569627,0.00033,15]
[330094885,1718989967312,-4089.57,0.00033,2]
[330094886,1718989967322,-20134.9162922,0.00033,2]
[330094887,1718989967331,-500000.0,0.00033,14]
[330094888,1718989967341,-159.0855067,0.00033,120]
[330094889,1718989967352,-1550.0,0.00033,2]
[330094890,1718989967362,-207.0,0.00033,2]
[330094891,1718989967371,-150.0,0.00033018,120]
[330094892,1718989967381,-150.0,0.00033026,120]
[330094893,1718989967391,-500000.0,0.000331,14]
[330094894,1718989967401,-150.0,0.00033163,120]
[330094895,1718989967410,-150.0,0.00033165,2]
[330094896,1718989967420,-1000.0,0.000332,2]
[330094897,1718989967430,-500000.0,0.000332,14]
[330094898,1718989967439,-2500.0,0.000332,2]
[330094899,1718989967448,-1300.0,0.00033218,10]
[330094900,1718989967458,-3100.0,0.00033218,10]
[330094901,1718989967468,-800.0,0.00033218,10]
[330094902,1718989967478,-6072.7915165,0.0003327,30]
[330094903,1718989967487,-300.0,0.00033287,120]
[330094904,1718989967497,-477.97,0.00033288,2]
[330094905,1718989967507,-500000.0,0.000333,14]
[330094906,1718989967517,-500000.0,0.000334,14]
[330094907,1718989967526,-59102.38459265,0.000334,14]
[330094908,1718989967536,-1142.9573369,0.000335,2]
[330094909,1718989967545,-15118.92429681,0.000335,2]
[330094910,1718989967555,-1511.853893,0.000335,30]
[330094911,1718989967564,-168.34,0.000335,31]
[330094912,1718989967574,-528.91,0.00033617,2]
[330094913,1718989967584,-200.0,0.00033654,120]
[330094914,1718989967593,-768.0,0.00033674,5]
[330094915,1718989967603,-1300.0,0.00033766,10]
[330094916,1718989967612,-800.0,0.00033766,10]
[330094917,1718989967622,-3100.0,0.00033766,10]
[330094918,1718989967631,-500.0,0.00033766,10]
[330094919,1718989967641,-150.0,0.00033777,120]
[330094920,1718989967650,-678.48,0.00033785,2]
[330094921,1718989967660,-150.0,0.00033886,2]
[330094922,1718989967670,-164.55,0.00033941,2]
[330094923,1718989967681,-164.55,0.00033941,2]
[330094924,1718989967690,-469.14,0.00033941,2]
[330094925,1718989967700,-164.55,0.00033941,2]
[330094926,1718989967711,-164.55,0.00033941,2]
[330094927,1718989967722,-164.55,0.00033941,2]
[330094928,1718989967731,-205.14,0.00033941,2]
[330094929,1718989967741,-150.0,0.00033984,120]
[330094930,1718989967751,-1038.0,0.00033998,3]
[330094931,1718989967761,-20000.0,0.00034,5]
[330094932,1718989967771,-20000.0,0.00034,2]
[330094933,1718989967780,-1840.22652717,0.00034,12]
[330094934,1718989967790,-2000.0,0.00034,2]
[330094935,1718989967800,-216.61419756,0.00034,12]
[330094936,1718989967810,-14591.62,0.00034,2]
[330094937,1718989967819,-3920.37,0.00034,2]
[330094938,1718989967829,-174.03894915,0.00034,12]
[330094939,1718989967838,-500.0,0.00034,120]
[330094940,1718989967849,-1359.8314169,0.00034,120]
[330094941,1718989967858,-1000.0,0.00034,120]
[330094942,1718989967868,-150.0,0.00034073,120]
[330094943,1718989967878,-19704.08,0.00034246,19]
[330094944,1718989967887,-1038.0,0.00034275,5]
[330094945,1718989967897,-800.0,0.00034314,10]
[330094946,1718989967907,-150.0,0.00034337,120]
[330094947,1718989967916,-150.0,0.00034339,120]
[330094948,1718989967926,-152.0,0.00034458,7]
[330094949,1718989967935,-150.0,0.00034548,10]
[330094950,1718989967945,-150.0,0.00034552,120]
[330094951,1718989967955,-150.0,0.00034582,120]
[330094952,1718989967965,-168.34,0.000346,31]
[330094953,1718989967974,-150.0,0.00034607,2]
[330094954,1718989967984,-300.0,0.00034693,120]
[330094955,1718989967993,-2857.96594897,0.00034809,7]
[330094956,1718989968004,-1300.0,0.00034862,10]
[330094957,1718989968014,-3100.0,0.00034862,10]
[330094958,1718989968024,-500.0,0.00034862,10]
[330094959,1718989968034,-46941.02945439,0.00034867,2]
[330094960,1718989968044,-1245.91107,0.0003494,14]
[330094961,1718989968054,-1000.0,0.0003496,14]
[330094962,1718989968063,-150.0,0.00034975,120]
[330094963,1718989968072,-12197.7007398,0.00034976,2]
[330094964,1718989968081,-1000.0,0.0003498,14]
[330094965,1718989968091,-50000.0,0.00035,25]
[330094966,1718989968100,-728.10585481,0.00035,4]
[330094967,1718989968109,-20404.39042002,0.00035,6]
[330094968,1718989968118,-20403.37680479,0.00035,6]
[330094969,1718989968133,-20403.6263287,0.00035,6]
[330094970,1718989968142,-20403.66085542,0.00035,6]
[330094971,1718989968151,-20441.78936141,0.00035,6]
[330094972,1718989968163,-306.58074597,0.00035,4]
[330094973,1718989968172,-3900.0,0.00035,7]
[330094974,1718989968182,-500.0,0.00035,7]
[330094975,1718989968191,-20000.0,0.00035,2]
[330094976,1718989968203,-500.44,0.00035,7]
[330094977,1718989968212,-500.0,0.00035,4]
[330094978,1718989968221,-3006.0,0.00035,20]
[330094979,1718989968230,-500.0,0.00035,7]
[330094980,1718989968239,-150.0,0.00035,2]
[330094981,1718989968248,-562.41,0.00035,10]
[330094982,1718989968258,-207.44408545,0.00035,2]
[330094983,1718989968268,-3885.47828743,0.00035,4]
[330094984,1718989968277,-1000.0,0.00035,3]
[330094985,1718989968287,-3319.02278686,0.00035,4]
[330094986,1718989968298,-274.06025893,0.00035,2]
[330094987,1718989968307,-602.29826525,0.00035,30]
[330094988,1718989968316,-1732.89075204,0.00035,30]
[330094989,1718989968325,-217.94018001,0.00035,120]
[330094990,1718989968336,-340.0690734,0.00035,30]
[330094991,1718989968346,-200.0,0.00035,120]
[330094992,1718989968356,-1600.0,0.00035,2]
[330094993,1718989968367,-1000.0,0.00035,14]
[330094994,1718989968377,-5000.0,0.00035,3]
[330094995,1718989968387,-8209.0,0.00035,5]
[330094996,1718989968396,-3905.32627196,0.00035,2]
[330094997,1718989968406,-4460.87151118,0.000351,7]
[330094998,1718989968417,-1000.0,0.00035136,10]
[330094999,1718989968427,-150.0,0.00035328,2]
[330095000,1718989968436,-150.0,0.0003537,120]
[330095001,1718989968446,-800.0,0.0003541,10]
[330095002,1718989968455,-1000.30055097,0.00035475,7]
[330095003,1718989968465,-166.84505875,0.0003549,10]
[330095004,1718989968479,-1277.0,0.00035552,3]
[330095005,1718989968488,-168.34,0.000356,31]
[330095006,1718989968498,-1438.02,0.00035616,90]
[330095007,1718989968508,-1438.02,0.00035616,90]
[330095008,1718989968518,-1438.02,0.00035616,90]
[330095009,1718989968528,-1438.02,0.00035616,90]
[330095010,1718989968538,-1438.02,0.00035616,90]
[330095011,1718989968548,-1438.02,0.00035616,90]
[330095012,1718989968558,-1438.02,0.00035616,90]
[330095013,1718989968568,-1438.02,0.00035616,90]
[330095014,1718989968577,-1438.02,0.00035616,90]
[330095015,1718989968587,-1438.02,0.00035616,90]
[330095016,1718989968597,-1438.02,0.00035616,90]
[330095017,1718989968694,-1438.02,0.00035616,90]
[330095018,1718989968704,-1438.02,0.00035616,90]
[330095019,1718989968714,-1438.02,0.00035616,90]
[330095020,1718989968726,-1438.02,0.00035616,90]
[330095021,1718989968735,-1438.02,0.00035616,90]
[330095022,1718989968745,-1438.02,0.00035616,90]
[330095023,1718989968756,-1438.02,0.00035616,90]
[330095024,1718989968765,-1438.02,0.00035616,90]
[330095025,1718989968775,-1438.02,0.00035616,90]
[330095026,1718989968784,-1438.02,0.00035616,90]
[330095027,1718989968794,-1438.02,0.00035616,90]
[330095028,1718989968803,-1438.02,0.00035616,90]
[330095029,1718989968813,-1438.19570864,0.00035616,90]
[330095030,1718989968822,-19704.08,0.00035616,21]
[330095031,1718989968831,-200.0,0.00035616,60]
[330095032,1718989968841,-1000.0,0.00035616,30]
[330095033,1718989968851,-630.8,0.00035616,2]
[330095034,1718989968861,-2856.0659026,0.0003566,2]
[330095035,1718989968872,-8508.8565889,0.0003566,2]
[330095036,1718989968882,-1000.0,0.00035684,10]
[330095037,1718989968892,-1000.0,0.00035718,30]
[330095038,1718989968901,-1000.0,0.00035819,30]
[330095039,1718989968911,-528.91,0.00035881,2]
[330095040,1718989968921,-2500.0,0.000359,2]
[330095041,1718989968930,-1000.0,0.00035921,30]
[330095042,1718989968940,-1300.0,0.00035958,10]
[330095043,1718989968949,-3100.0,0.00035958,10]
[330095044,1718989968959,-500.0,0.00035958,10]
[330095045,1718989968969,-505.3825735,0.00035975,2]
[330095046,1718989968978,-150.0,0.00035978,120]
[330095047,1718989968988,-50000.0,0.00036,26]
[330095048,1718989968998,-3166.99633759,0.00036,7]
[330095049,1718989969007,-40000.0,0.00036,2]
[330095050,1718989969015,-617.2069718,0.00036,2]
[330095051,1718989969025,-187.39759985,0.00036,15]
[330095052,1718989969034,-1000.0,0.00036,6]
[330095053,1718989969044,-274.76,0.00036,2]
[330095054,1718989969053,-1150.0,0.00036,120]
[330095055,1718989969062,-207.0,0.00036,2]
[330095056,1718989969072,-1000.0,0.00036022,30]
[330095057,1718989969081,-150.0,0.00036049,2]
[330095058,1718989969090,-1038.0,0.00036079,5]
[330095059,1718989969100,-331.37363905,0.000361,120]
[330095060,1718989969109,-1000.0,0.00036124,30]
[330095061,1718989969120,-250.03,0.00036164,2]
[330095062,1718989969135,-150.0,0.00036177,120]
[330095063,1718989969144,-1000.0,0.00036225,30]
[330095064,1718989969153,-1000.0,0.00036232,10]
[330095065,1718989969163,-150.0,0.00036275,120]
[330095066,1718989969173,-1000.0,0.00036327,30]
[330095067,1718989969182,-1000.0,0.00036428,30]
[330095068,1718989969191,-800.0,0.00036506,10]
[330095069,1718989969200,-1000.0,0.0003653,30]
[330095070,1718989969212,-152.0,0.0003657,8]
[330095071,1718989969222,-1000.0,0.00036631,30]
[330095072,1718989969232,-168.34,0.000367,31]
[330095073,1718989969242,-1000.0,0.00036733,30]
[330095074,1718989969252,-150.0,0.0003677,2]
[330095075,1718989969261,-1086.0,0.00036777,20]
[330095076,1718989969271,-1000.0,0.0003678,10]
[330095077,1718989969280,-39415.4064754,0.00036781,7]
[330095078,1718989969290,-106613.075952,0.00036781,7]
[330095079,1718989969300,-3474.54576134,0.00036781,7]
[330095080,1718989969309,-53621.755856,0.00036781,7]
[330095081,1718989969318,-1974.25414433,0.00036781,7]
[330095082,1718989969327,-377.963473,0.000368,30]
[330095083,1718989969336,-150.0,0.00036813,120]
[330095084,1718989969347,-1000.0,0.00036834,30]
[330095085,1718989969359,-25650.8,0.00036872,15]
[330095086,1718989969368,-150.0,0.00036912,120]
[330095087,1718989969379,-1000.0,0.00036936,30]
[330095088,1718989969388,-19704.08,0.00036986,23]
[330095089,1718989969398,-477.97,0.00036986,2]
[330095090,1718989969408,-50000.0,0.00037,27]
[330095091,1718989969418,-1000.0,0.00037,10]
[330095092,1718989969427,-1000.09820089,0.00037,7]
[330095093,1718989969437,-2360.84310505,0.00037,10]
[330095094,1718989969446,-3302.26240893,0.00037,4]
[330095095,1718989969456,-1092.0,0.00037,120]
[330095096,1718989969466,-1650.0,0.00037,2]
[330095097,1718989969475,-793.86907435,0.00037,2]
[330095098,1718989969485,-1000.0,0.00037037,30]
[330095099,1718989969495,-1075.0,0.00037042,5]
[330095100,1718989969510,-1300.0,0.00037054,10]
[330095101,1718989969519,-3100.0,0.00037054,10]
[330095102,1718989969528,-500.0,0.00037054,10]
[330095103,1718989969539,-1000.0,0.00037139,30]
[330095104,1718989969550,-1086.0,0.00037156,20]
[330095105,1718989969560,-1000.0,0.0003724,30]
[330095106,1718989969570,-1000.0,0.00037328,10]
[330095107,1718989969579,-1000.0,0.00037341,30]
[330095108,1718989969589,-1000.0,0.00037443,30]
[330095109,1718989969599,-150.0,0.00037491,2]
[330095110,1718989969608,-1086.0,0.00037535,20]
[330095111,1718989969618,-1000.0,0.00037544,30]
[330095112,1718989969628,-150.0,0.00037563,120]
[330095113,1718989969637,-4105.95597291,0.0003759,2]
[330095114,1718989969647,-800.0,0.00037602,10]
[330095115,1718989969657,-1000.0,0.00037646,30]
[330095116,1718989969667,-1000.0,0.000377,7]
[330095117,1718989969676,-168.34,0.000377,31]
[330095118,1718989969685,-168.34,0.000377,31]
[330095119,1718989969695,-168.34,0.000377,31]
[330095120,1718989969704,-168.34,0.000377,31]
[330095121,1718989969713,-1000.0,0.00037747,30]
[330095122,1718989969723,-164.61389247,0.000378,2]
[330095123,1718989969732,-150.0,0.00037815,120]
[330095124,1718989969741,-1000.0,0.00037849,30]
[330095125,1718989969754,-1000.0,0.00037876,10]
[330095126,1718989969763,-150.0,0.00037877,120]
[330095127,1718989969773,-1086.0,0.00037915,20]
[330095128,1718989969782,-793.18366443,0.00037915,20]
[330095129,1718989969792,-1000.0,0.0003795,30]
[330095130,1718989969800,-1038.0,0.00037978,5]
[330095131,1718989969810,-2857.96594897,0.00037989,10]
[330095132,1718989969820,-845.78587,0.0003799,2]
[330095133,1718989969831,-50000.0,0.00038,28]
[330095134,1718989969840,-7000.0,0.00038,4]
[330095135,1718989969850,-1182.65605074,0.00038,2]
[330095136,1718989969859,-2047.53112404,0.00038,14]
[330095137,1718989969869,-106331.10012583,0.00038,2]
[330095138,1718989969878,-20000.0,0.00038,7]
[330095139,1718989969888,-1000.0,0.00038,7]
[330095140,1718989969897,-890.0,0.00038,15]
[330095141,1718989969907,-4089.57,0.00038,2]
[330095142,1718989969916,-250.08876928,0.00038,4]
[330095143,1718989969925,-500.0,0.00038,120]
[330095144,1718989969935,-1050.0,0.00038,120]
[330095145,1718989969944,-1841.18599976,0.00038,30]
[330095146,1718989969954,-1000.0,0.00038052,30]
[330095147,1718989969964,-528.91,0.00038145,2]
[330095148,1718989969973,-1300.0,0.0003815,10]
[330095149,1718989969983,-3100.0,0.0003815,10]
[330095150,1718989969993,-500.0,0.0003815,10]
[330095151,1718989970007,-1000.0,0.00038153,30]
[330095152,1718989970017,-150.0,0.00038212,2]
[330095153,1718989970027,-1000.0,0.00038255,30]
[330095154,1718989970037,-1086.0,0.00038294,20]
[330095155,1718989970046,-2001.46640601,0.0003834,2]
[330095156,1718989970056,-19704.08,0.00038356,25]
[330095157,1718989970066,-209.10147377,0.00038356,60]
[330095158,1718989970076,-630.8,0.00038356,2]
[330095159,1718989970086,-1000.0,0.00038356,30]
[330095160,1718989970095,-678.24433457,0.000384,120]
[330095161,1718989970104,-3600.17165905,0.000384,2]
[330095162,1718989970114,-1000.0,0.000384,2]
[330095163,1718989970126,-324.0,0.000384,2]
[330095164,1718989970136,-761.0,0.000384,2]
[330095165,1718989970145,-2000.0,0.000384,2]
[330095166,1718989970156,-1000.0,0.00038458,30]
[330095167,1718989970165,-1000.0,0.00038559,30]
[330095168,1718989970175,-1000.0,0.000386,7]
[330095169,1718989970185,-2500.0,0.000386,2]
[330095170,1718989970194,-1000.0,0.00038661,30]
[330095171,1718989970206,-1086.0,0.00038673,20]
[330095172,1718989970215,-152.0,0.00038682,9]
[330095173,1718989970225,-800.0,0.00038698,10]
[330095174,1718989970234,-1000.0,0.00038762,30]
[330095175,1718989970244,-1356.8862219,0.00038773,2]
[330095176,1718989970258,-11282.5845853,0.000388,2]
[330095177,1718989970267,-5000.0,0.000388,14]
[330095178,1718989970275,-5000.0,0.000388,7]
[330095179,1718989970284,-5000.0,0.000388,7]
[330095180,1718989970293,-5000.0,0.000388,14]
[330095181,1718989970302,-5000.0,0.000388,7]
[330095182,1718989970310,-5000.0,0.000388,21]
[330095183,1718989970319,-10149.0373478,0.000388,45]
[330095184,1718989970328,-65333.37950217,0.000388,30]
[330095185,1718989970338,-271530.6330453,0.000388,30]
[330095186,1718989970347,-299905.57535683,0.000388,30]
[330095187,1718989970356,-119468.35254684,0.000388,30]
[330095188,1718989970366,-281344.33540992,0.000388,30]
[330095189,1718989970375,-275603.07017269,0.000388,30]
[330095190,1718989970384,-108233.63643349,0.000388,30]
[330095191,1718989970394,-101783.15206117,0.000388,30]
[330095192,1718989970403,-1000.0,0.00038864,30]
[330095193,1718989970413,-500.0,0.0003889,20]
[330095194,1718989970422,-1000.0,0.000389,7]
[330095195,1718989970431,-1049.98179603,0.000389,30]
[330095196,1718989970441,-150.0,0.00038933,2]
[330095197,1718989970451,-1000.0,0.00038965,30]
[330095198,1718989970460,-1000.0,0.00038972,10]
[330095199,1718989970470,-50000.0,0.00039,29]
[330095200,1718989970479,-1163.86894665,0.00039,2]
[330095201,1718989970488,-149355.5654049,0.00039,15]
[330095202,1718989970497,-1000000.0,0.00039,2]
[330095203,1718989970507,-1000000.0,0.00039,2]
[330095204,1718989970516,-1000000.0,0.00039,7]
[330095205,1718989970525,-1000000.0,0.00039,7]
[330095206,1718989970535,-1278.13227385,0.00039,30]
[330095207,1718989970544,-1700.0,0.00039,2]
[330095208,1718989970553,-207.0,0.00039,2]
[330095209,1718989970563,-1086.0,0.00039052,20]
[330095210,1718989970572,-1000.0,0.00039066,30]
[330095211,1718989970581,-162.82815,0.00039088,7]
[330095212,1718989970590,-569.906286,0.000391,5]
[330095213,1718989970600,-1000.0,0.00039168,30]
[330095214,1718989970609,-1000.0,0.000392,7]
[330095215,1718989970619,-1300.0,0.00039246,10]
[330095216,1718989970628,-3100.0,0.00039246,10]
[330095217,1718989970638,-500.0,0.00039246,10]
[330095218,1718989970647,-1000.0,0.00039269,30]
[330095219,1718989970656,-162.82815,0.00039288,7]
[330095220,1718989970665,-10627.4478,0.00039301,30]
[330095221,1718989970675,-1000.0,0.00039371,30]
[330095222,1718989970684,-566.15249699,0.000394,30]
[330095223,1718989970693,-100000.0,0.00039436,5]
[330095224,1718989970702,-1000.0,0.00039472,30]
[330095225,1718989970712,-162.82815,0.00039488,7]
[330095226,1718989970721,-1000.0,0.000395,7]
[330095227,1718989970730,-5000.0,0.000395,8]
[330095228,1718989970739,-159.98172206,0.000395,30]
[330095229,1718989970749,-150.0,0.00039546,120]
[330095230,1718989970760,-1000.0,0.00039574,30]
[330095231,1718989970769,-16428.07667136,0.00039577,7]
[330095232,1718989970778,-300.0,0.000396,5]
[330095233,1718989970791,-150.0,0.00039654,2]
[330095234,1718989970801,-1000.0,0.00039675,30]
[330095235,1718989970810,-162.82815,0.00039688,7]
[330095236,1718989970819,-241.64,0.000397,2]
[330095237,1718989970829,-572.42270137,0.000397,60]
[330095238,1718989970838,-19704.08,0.00039726,27]
[330095239,1718989970847,-7500.0,0.0003977,2]
[330095240,1718989970856,-570.0,0.00039773,3]
[330095241,1718989970867,-1000.0,0.00039777,30]
[330095242,1718989970876,-800.0,0.00039794,10]
[330095243,1718989970886,-1000.0,0.000398,7]
[330095244,1718989970895,-250.6276678,0.000398,7]
[330095245,1718989970904,-403729.45443056,0.000398,60]
[330095246,1718989970915,-498.08566882,0.000398,30]
[330095247,1718989970924,-262.82579625,0.0003985,30]
[330095248,1718989970933,-678.48,0.00039856,2]
[330095249,1718989970944,-1000.0,0.00039878,30]
[330095250,1718989970953,-239473.10260346,0.000399,30]
[330095251,1718989970962,-150.0,0.00039952,120]
[330095252,1718989970971,-150.0,0.00039961,120]
[330095253,1718989970980,-226357.4485951,0.0003997,2]
[330095254,1718989970990,-1146.8489923,0.00039973,2]
[330095255,1718989971001,-3416.7186393,0.00039973,2]
[330095256,1718989971013,-202.9356166,0.00039973,2]
[330095257,1718989971022,-7348.5286048,0.00039973,2]
[330095258,1718989971031,-573.3036739,0.00039973,2]
[330095259,1718989971040,-1038.0,0.00039977,5]
[330095260,1718989971049,-1000.0,0.0003998,30]
[330095261,1718989971058,-150.0,0.00039986,120]
[330095262,1718989971067,-20249.48372258,0.00039998,2]
[330095263,1718989971076,-250.0,0.00039999,30]
[330095264,1718989971085,-155.0,0.0004,4]
[330095265,1718989971094,-1808.58339708,0.0004,4]
[330095266,1718989971103,-370.73731281,0.0004,2]
[330095267,1718989971112,-306.70202294,0.0004,4]
[330095268,1718989971124,-395.27468268,0.0004,7]
[330095269,1718989971135,-1508.48848928,0.0004,4]
[330095270,1718989971144,-3277.94414099,0.0004,10]
[330095271,1718989971154,-1000.0,0.0004,20]
[330095272,1718989971165,-414572.02154299,0.0004,25]
[330095273,1718989971174,-910.45420955,0.0004,2]
[330095274,1718989971183,-1841.4086345,0.0004,7]
[330095275,1718989971192,-500.0,0.0004,7]
[330095276,1718989971203,-3000.0,0.0004,7]
[330095277,1718989971212,-250.0434817,0.0004,2]
[330095278,1718989971222,-51847.82447502,0.0004,14]
[330095279,1718989971230,-9309.27592886,0.0004,5]
[330095280,1718989971240,-500.0,0.0004,7]
[330095281,1718989971251,-202.27,0.0004,12]